Cogmind - Beta 11.1 @@@ ROGUE MODE // 2022.04.22 @ 15:29:04 Player: RNGesus Result: Destroyed by D-53 Grenadier with Mini Grenade Launcher Performance ------------- Evolutions (0) 0 Regions Visited (2) 400 Robots Destroyed (21) 105 Value Destroyed (380) 380 Prototype IDs (1) 20 Alien Tech Used (0) 0 Bonus (0) 0 TOTAL SCORE: 905 Bonus ------- None Cogmind --------- Core Integrity 0/250 Matter 293/300 Energy 100/100 System Corruption 0% Temperature Cool (0) Movement Rolling (175) Ox5 Location -10/Mines Parts ------- > --- POWER (1) -------- (None) > --- PROPULSION (2) --- Compact Wheel > --- UTILITY (2) ------ Huge Storage Unit Seismic Detector > --- WEAPON (2) ------- Mining Claw > --- INVENTORY (25) --- Ion Engine Light Ion Engine Light Nuclear Core Seismic Detector Transport Network Coupler EM Pulse Gun Improved Medium Laser Assault Rifle Light Assault Rifle Light Assault Rifle Shotgun Rocket Launcher Mining Claw Mining Claw Mining Claw Peak State ------------ > --- POWER ------------ Light Ion Engine > --- PROPULSION ------- Light Treads Compact Wheel > --- UTILITY ---------- Huge Storage Unit Seismic Detector > --- WEAPON ----------- Assault Rifle Shotgun > --- INVENTORY -------- Ion Engine Light Ion Engine Light Nuclear Core Seismic Detector Transport Network Coupler EM Pulse Gun Improved Medium Laser Assault Rifle Light Assault Rifle Light Assault Rifle Shotgun Rocket Launcher Mining Claw Mining Claw Mining Claw Mining Claw [Rating: 10] Favorites ----------- Power Light Ion Engine Engine Light Ion Engine Propulsion Light Treads Treads Light Treads Wheel Compact Wheel Utility Seismic Detector Device Seismic Detector Storage Huge Storage Unit Weapon Assault Rifle Energy Gun Improved Medium Laser Ballistic Gun Assault Rifle Slashing Weapon Mining Claw Build | -11 -10 -10 ------- Run | Scr Mat Min Slots Evolved . | . . . Power . | . . . Propulsion . | . . . Utility . | . . . Weapon . | . . . Parts Attached 19 | 6 10 3 Power 2 | 1 1 . Engine 2 | 1 1 . Core . | . . . Reactor . | . . . Propulsion 4 | 2 1 1 Treads 3 | 2 1 . Leg . | . . . Wheel 1 | . . 1 Hover . | . . . Flight . | . . . Utility 5 | 1 4 . Device 1 | . 1 . Storage 4 | 1 3 . Processor . | . . . Hackware . | . . . Protection . | . . . Artifact . | . . . Weapon 8 | 2 4 2 Energy Gun 1 | . 1 . Energy Cannon . | . . . Ballistic Gun 5 | 2 2 1 Ballistic Cannon . | . . . Launcher . | . . . Special Weapon . | . . . Impact Weapon . | . . . Slashing Weapon 2 | . 1 1 Piercing Weapon . | . . . Special Melee Weapon . | . . . Unidentified Prototypes 1 | . 1 . Parts Lost 8 | . 3 5 Power 2 | . 1 1 Propulsion 3 | . 1 2 Utility . | . . . Weapon 3 | . 1 2 Highest Loss Streak 4 | . 2 4 To Critical Strikes . | . . . Average Slot Usage (%) 92 | . 90 97 Engine 13 | . 14 13 Treads 25 | . 27 14 Wheel 2 | . . 12 Device 8 | . 6 14 Storage 14 | . 14 14 Ballistic Gun 23 | . 22 26 Slashing Weapon 3 | . 4 . Naked Turns . | . . . Heaviest Build 89 | 11 88 89 Greatest Support 40 | 40 40 16 Greatest Overweight (x) 5 | . 2 5 Average Overweight (x) 1 | . . 5 Largest Inventory Capacity 25 | 8 25 25 Average Capacity 17 | 7 16 25 Most Carried 16 | 3 15 16 Average Carried 11 | 2 11 14 Final Capacity 25 | 8 25 25 Final Carried 15 | 3 15 15 Class Distribution -------------------- 100% | Mutant Dominant Class ---------------- Mutant | -10/Materials Mutant | -10/Mines Resources | -11 -10 -10 ----------- Run | Scr Mat Min Matter Collected 710 | 233 351 126 Remotely . | . . . Salvage Created 603 | . 407 196 Parts 45 | . 36 9 Haulers Intercepted 1 | . 1 . Recyclers Shooed 2 | . 1 1 Parts Field Recycled . | . . . Retrieved Matter . | . . . Parts Self-Destructed . | . . . Prevented . | . . . Kills | -11 -10 -10 ------- Run | Scr Mat Min Combat Hostiles Destroyed 14 | . 10 4 Guns 13 | . 9 4 AOE 1 | . 1 . Classes Destroyed 8 | . 7 1 Worker 1 | . 1 . Builder 1 | . 1 . Tunneler 1 | . . 1 Hauler 1 | . 1 . Recycler 2 | . 2 . Mechanic 1 | . 1 . Swarmer 8 | . 8 . Grunt 6 | . 2 4 Best Kill Streak 4 | . 4 3 Combat Bots Only 3 | . 3 2 Max Kills in Single Turn 2 | . 2 1 Gunslinging 1 | . 1 . Exploded 1 | . 1 . Melee . | . . . Uniques/NPCs Destroyed . | . . . Combat | -11 -10 -10 -------- Run | Scr Mat Min Damage Taken 1156 | . 576 580 Core 269 | . 90 179 Absorbed by Shields . | . . . Core Remaining (%) 100 | 100 . . Volleys Fired 60 | . 41 19 Largest 2 | . 2 2 Hottest 43 | . 43 43 Shots Fired 103 | . 75 28 Gun 103 | . 75 28 Cannon . | . . . Launcher . | . . . Special . | . . . Kinetic 103 | . 75 28 Thermal . | . . . Explosive . | . . . Electromagnetic . | . . . Robot Hit Streak 8 | . 8 5 Robot Miss Streak 4 | . 4 4 Penetration Max . | . . . Secondary Targets 3 | . 1 2 Max Gunslinging Chain 1 | . 1 1 Shots Hit Robots 68 | . 47 21 Core Hits 36 | . 25 11 Critical Kills 1 | . . 1 Critical Parts Destroyed . | . . . Critical Strikes 1 | . . 1 Destroy 1 | . . 1 Melee Attacks 12 | . 11 1 Impact . | . . . Slashing 12 | . 11 1 Piercing . | . . . Sneak Attacks . | . . . Combat Hostiles . | . . . Follow-up Attacks . | . . . Damage Inflicted 1130 | . 809 321 Guns 1015 | . 717 298 Cannons . | . . . Explosions 92 | . 92 . Melee 23 | . . 23 Ramming . | . . . Kinetic 1015 | . 717 298 Thermal 92 | . 92 . Explosive . | . . . Electromagnetic . | . . . Impact . | . . . Slashing 23 | . . 23 Piercing . | . . . Highest Corruption . | . . . Average Corruption . | . . . Corruption Purged . | . . . Corruption Blocked . | . . . Overload Shots . | . . . Overflow Damage 92 | . 92 . Projectiles . | . . . Explosions 92 | . 92 . Melee . | . . . Knockbacks . | . . . Impact . | . . . Kinetic . | . . . Secondary . | . . . Self-Inflicted Damage 183 | . 183 . Shots 2 | . 2 . Rammed . | . . . Targets Rammed . | . . . Kicked . | . . . Crushed . | . . . Highest Temperature 6 | . 6 6 Average Temperature 5 | . 5 5 Received Heat Transfer 264 | . 114 150 Siege Activations . | . . . Robots Corrupted . | . . . Combat Hostiles . | . . . Parts Fried . | . . . Impact Corruptions . | . . . Robots Melted . | . . . Combat Hostiles . | . . . Parts Melted 1 | . 1 . Heat Transferred 50 | . 50 . Parts Sabotaged . | . . . Parts Stolen . | . . . Parts Stripped . | . . . Power Chain Reactions . | . . . Missiles Intercepted . | . . . Alert | -11 -10 -10 ------- Run | Scr Mat Min Peak Influence 212 | . 212 107 Initial 12 | . . 12 Average 75 | . 83 62 Maximum Alert Level 1 | . 1 . Low Security (%) 95 | 100 94 100 Level 1 4 | . 5 . Level 2 . | . . . Level 3 . | . . . Level 4 . | . . . Level 5 . | . . . High Security . | . . . Max Security . | . . . Squads Dispatched 2 | . 2 . Investigation 2 | . 2 . Extermination . | . . . Reinforcement . | . . . Assault . | . . . Garrison . | . . . Intercept . | . . . Searches Triggered . | . . . Construction Impeded . | . . . Haulers Reinforced . | . . . Active Scanning Responses . | . . . Cargo Convoy Interrupts . | . . . Stealth | -11 -10 -10 --------- Run | Scr Mat Min Distress Signals 2 | . 2 . Communications Jammed . | . . . Distress Signals . | . . . Times Spotted 32 | . 26 6 Peak Tracking Total 4 | . 4 2 Tactical Retreats 1 | . 1 . Traps | -11 -10 -10 ------- Run | Scr Mat Min Traps Triggered . | . . . Indirectly . | . . . Trap Hack Attempts . | . . . Triggered . | . . . Disarmed . | . . . Reprogrammed . | . . . Reused . | . . . Traps Extracted . | . . . Installed . | . . . Triggered . | . . . Machines | -11 -10 -10 ---------- Run | Scr Mat Min Machines Disabled 3 | . 3 . Max in Single Turn 3 | . 3 . Machines Sabotaged . | . . . Garrisons Compromised . | . . . Overloaded Fab Kills . | . . . Hacking | -11 -10 -10 --------- Run | Scr Mat Min Machines Accessed 4 | . 4 . Terminals 2 | . 2 . Fabricators . | . . . Repair Stations . | . . . Recycling Units 2 | . 2 . Scanalyzers . | . . . Garrison Access . | . . . Total Hacks 11 | . 11 . Successful 5 | . 5 . Failed 5 | . 5 . Catastrophic 3 | . 3 . Database Lockouts 1 | . 1 . Manual 10 | . 10 . Terminals 9 | . 9 . Fabricators . | . . . Repair Stations . | . . . Recycling Units 2 | . 2 . Scanalyzers . | . . . Garrison Access . | . . . Terminal Hacks 3 | . 3 . Part Schematic 2 | . 2 . Alert Level 1 | . 1 . Fabricator Hacks . | . . . Repair Station Hacks . | . . . Recycling Unit Hacks . | . . . Scanalyzer . | . . . Garrison Access Hacks . | . . . Unauthorized Hacks 2 | . 2 . Terminals . | . . . Fabricators . | . . . Repair Stations . | . . . Recycling Units 2 | . 2 . Tunnel 2 | . 2 . Scanalyzers . | . . . Garrison Access . | . . . Data Cores Recovered . | . . . Used . | . . . Hacking Detections 2 | . 2 . Full Trace Events 1 | . 1 . Feedback Events . | . . . Feedback Blocked . | . . . Robot Schematics Acquired . | . . . Robots Built . | . . . Authchips . | . . . Time . | . . . Total Robot Build Rating . | . . . Part Schematics Acquired 2 | . 2 . Parts Built . | . . . Authchips . | . . . Time . | . . . Total Part Build Rating . | . . . Parts Repaired . | . . . Time . | . . . Parts Recycled . | . . . Recycled Matter . | . . . Retrieved Matter . | . . . Retrieved Components . | . . . Parts Scanalyzed . | . . . Part Schematics Acquired . | . . . Parts Damaged . | . . . Bothacking | -11 -10 -10 ------------ Run | Scr Mat Min Used RIF Installer . | . . . Robots Hacked . | . . . Non-combat . | . . . Combat . | . . . Robot Hacks Applied . | . . . Relay Couplers Released . | . . . Fabnet Peak Effective % . | . . . Robots Rewired . | . . . Allies Hacked . | . . . Hacks Repelled . | . . . Allies | -11 -10 -10 -------- Run | Scr Mat Min Total Allies . | . . . Largest Group . | . . . Highest-Rated Group . | . . . Highest-Rated Ally . | . . . Total Orders . | . . . Ally Attacks . | . . . Total Damage . | . . . Kills . | . . . Allies Corrupted . | . . . Allies Melted . | . . . Intel | -11 -10 -10 ------- Run | Scr Mat Min Robot Analysis Total . | . . . Derelict Logs Recovered 1 | . . 1 Drone Launches . | . . . Drone Recoveries . | . . . Exploration | -11 -10 -10 ------------- Run | Scr Mat Min Turns Passed 1789 | 86 1348 355 Spaces Moved 828 | 48 610 170 Core 2 | 2 . . Treads 656 | 46 610 . Legs . | . . . Wheels 170 | . . 170 Hover . | . . . Flight . | . . . Fastest Speed 50 | 50 160 175 Average Speed 185 | 155 191 175 Slowest Speed 320 | 160 320 175 Overloaded Moves . | . . . Propulsion Burnouts . | . . . Robots Hopped . | . . . Cave-ins Triggered . | . . . Exploration Rate (%) 46 | 4 92 44 Regions Visited 2 Branch Regions 1 Pre-discovered Areas 2 | . 2 . Known Exits Taken . | . . . Unknown Exits Taken 2 | 1 1 . Scrap Searched 1 | . . 1 Spaces Dug 8 | . 8 . Terrain Destroyed 18 | . 18 . Melee 8 | . 8 . Projectile . | . . . AOE 10 | . 10 . Terrain Rammed . | . . . Walls Destroyed . | . . . Machines Disabled . | . . . Actions | -11 -10 -10 --------- Run | Scr Mat Min Total 951 | 57 697 197 Wait 7 | . 5 2 Move 826 | 47 609 170 Hop . | . . . Pick Up 20 | 4 14 2 Fast Attach 9 | 5 4 . Attach 7 | 1 4 2 Detach 4 | . 4 . Swap 3 | . 2 1 Drop 3 | . 3 . Fire 60 | . 41 19 Melee 12 | . 11 1 Ram . | . . . Kick . | . . . Crush . | . . . Escape Stasis . | . . . Rewire . | . . . Trap . | . . . Miscellaneous . | . . . Route ------- -11/Scrapyard -10/Materials (discovered 4 exits: [*Mat x3] / [*Min]) -10/Mines (discovered 2 exits: [*Mat x2]) History --------- Turn | Location | Event 30 | -11/Scrapyard | Discovered new exit (range 16) 87 | -11/Scrapyard | Entered Materials 317 | -10/Materials | Build established: Mutant 456 | -10/Materials | Discovered new exit (range 16) 647 | -10/Materials | Discovered new exit (range 15) 871 | -10/Materials | Discovered new exit (range 16) 1103 | -10/Materials | Central database locked down 1224 | -10/Materials | Discovered new exit (range 13) 1435 | -10/Materials | Entered Mines 1446 | -10/Mines | Core integrity fell below 50% 1474 | -10/Mines | Met a Derelict bent on vengeance 1523 | -10/Mines | Discovered new exit (range 10) 1583 | -10/Mines | Received a Rocket Launcher from a helpful Derelict 1622 | -10/Mines | Learned Materials terminal intel 1688 | -10/Mines | Discovered new exit (range 8) 1745 | -10/Mines | Assembled infested the area 1782 | -10/Mines | Core integrity fell below 20% 1790 | -10/Mines | Destroyed by D-53 Grenadier with Mini Grenade Launcher Last Messages --------------- 01678_ Found 13 Matter. 01679_ Acquired 13 matter. 01688_ EXIT=FOUND 01699_ T-07 Excavator destroyed. 01699_ Switching to secondary target: G-34 Mercenary. 01705_ G-47 Trooper suffers critical hit (Destroy). 01705_ G-47 Trooper destroyed. 01708_ G-34 Mercenary destroyed. 01711_ Acquired 29 matter. 01715_ Acquired Lgt. Nuclear Core. 01745_ ALERT: Infestation in the mines, dispatching Demolisher response squad. 01775_ C-30 ARC bursts open, deploying its payload. 01775_ D-53 Grenadier unfolds itself. 01775_ Assault Rifle destroyed. 01785_ Shotgun destroyed. 01786_ The unstable cave ceiling collapses. 01787_ Lgt. Ion Engine destroyed. 01787_ Lgt. Treads destroyed. 01788_ The unstable cave ceiling collapses. Map ----- +----------------------------------------------------+ | ????????# ##???????????????????? | | ????????## * ##????????????????????? | | ?????????###%%######????????????????? | | """ ####== #????????????????? | | """ #### #????????????????? | | """ < #??# #????????????????? | | #######??# #????????????????? | | ###T# #??????????# #????????????????? | | ????#????????????# #????????????????? | | ?????????????????# #????????????????? | | ?????????????????# #????????????????? | | ?????????????????# #????????????????? | | ?????????????????# #????????????????? | | ?????????????????# #????????????????? | | ?????????????????# #????????????????? | | ?????????????????# #????????????????? | | ?????????????????# #????????????????? | | ?????????????????# ######???????????? | | ?????????????????# #???????????? | | ?????????????????###### #???????????? | | ??????????????????????# #?###????##?? | | ?????????????????????## ## ##? #?? | | ?????????????????????# # #?? | | ?????????????????????# d #?? | | ?????????????????????# #??? | | ?????????????????????# @ # #???? | | ????????????????????# #???? | | ????????????????????# #???? | | ????????????????????## # # #???? | | ?????????????????????# #???? | | ?????????????????????### ????? | | ???????????????????????# ???? | | ??????????????????????? ##??? | | ??????????????????????? ##???? | | ??????????????????????# ##????? | | ??????????????????????# #?????? | | ??????????????????????# """ #?????? | | ??????????????????????# """ ?????? | | ?????????????????????? """ ?????? | | ?????????????????????? ??? ????? | | ?????????????????????? ???? ????? | | ?????????????????????? ????? #???? | | ?????????????????????# ??????????? | | ??????????????????????? ??????????? | | ????????????????????????????????????? | | ????????????????????????????????????? | | ????????????????????????????????????? | | ????????????????????????????????????? | | ????????????????????????????????????? | | ????????????????????????????????????? | +----------------------------------------------------+ Best States ------------- Heat Dissipation 25 Energy Generation 10 Energy Capacity 125 Matter Stores 300 Matter Capacity 300 Sight Range 16 Terrain Scan Density 10 Evasion (%) 40 Recoil Reduction 2 Item Schematics ----------------- Huge Storage Unit | -10/Materials | Hacked Hcp. Storage Unit | -10/Materials | Hacked Robot Schematics ------------------ None Fabricated ------------ Nothing Alien Tech Used ----------------- None Achievements -------------- None Challenges ------------ None Game ------ Seed DefenseBackupBoomstick Manual? 0 Play Time 00:07:50 Cumulative 350.8 hours Start 2022.04.22 @ 15:19:48 End 2022.04.22 @ 15:29:04 Sessions 1 Manual Loads 0 Difficulty Rogue Special Mode None Game No. 514 Rogue 514 Adventurer 0 Explorer 0 Win Type - Total 6 Types 4/0/1/1/0/0/0/0/0 Lore% 82 Gallery% 84 Achievement% 66 Wizard Run 0 Options --------- ASCII 0 Keyboard 1 Movement Numpad Keybinds 0 Fullscreen 2 Font 24/Smallcaps Map View 76x50 Tactical HUD 1 Map Filters NONE Filters NONE Steam 1 RUN: d612aa92-f847-4eb1-bff4-04b4bd4529bc